bitfinex/quotes_BTCUSD_20250221
["timestamp","ask_amount","ask_price","bid_price","bid_amount"]
[1740130826755,3.066727,98496.0,98494.0,1.54685281]
[1740130826756,3.066728,98495.0,98494.0,1.54685281]
[1740130826955,3.20099496,98495.0,98494.0,1.51634025]
[1740130827350,3.41827452,98495.0,98494.0,1.05595769]
[1740130827983,3.41827452,98495.0,98494.0,1.01995769]
[1740130828196,3.42527452,98495.0,98494.0,0.99335769]
[1740130828413,3.52792021,98495.0,98494.0,0.99335769]
[1740130828660,3.54695444,98495.0,98494.0,0.98435769]
[1740130828860,3.55395444,98495.0,98494.0,0.95892769]
[1740130829243,3.70672358,98495.0,98494.0,0.66979769]
[1740130829986,3.70672358,98495.0,98494.0,0.61312547]
[1740130830680,3.70672358,98495.0,98494.0,0.58260325]
[1740130830850,3.70672358,98495.0,98494.0,0.55717325]
[1740130831630,3.70672358,98495.0,98494.0,0.50065103]
[1740130832330,3.73504945,98495.0,98494.0,0.17563284]
[1740130832536,3.73504945,98495.0,98494.0,0.02009063]
[1740130832865,0.342293,98494.0,98493.0,1.0565138]
[1740130832985,3.22384265,98494.0,98493.0,1.0565138]
[1740130833185,3.22384265,98494.0,98493.0,1.01472958]
[1740130833990,3.2453835,98494.0,98493.0,1.01472958]
[1740130834548,3.27518871,98494.0,98493.0,1.01472958]
[1740130834701,3.27518871,98494.0,98493.0,0.97872958]
[1740130834911,3.33221389,98494.0,98493.0,0.97872958]
[1740130835528,3.33221389,98494.0,98493.0,0.97239714]
[1740130836681,3.36274989,98494.0,98493.0,0.97239714]
[1740130836888,3.36274989,98494.0,98493.0,0.87333696]
[1740130837500,1.3348192,98494.0,98493.0,0.87333696]
[1740130837713,0.84439135,98494.0,98493.0,0.87333696]
[1740130837921,0.85379135,98494.0,98493.0,0.87333696]
[1740130838150,1.02110134,98494.0,98493.0,0.87333696]
[1740130838542,0.93427095,98494.0,98493.0,0.87333696]
[1740130838884,1.03691664,98494.0,98493.0,0.87333696]
[1740130839086,1.05691664,98494.0,98493.0,0.87333696]
[1740130839298,1.04991664,98494.0,98493.0,0.87333696]
[1740130839530,1.02991664,98494.0,98493.0,0.87333696]
[1740130839739,1.06391664,98494.0,98493.0,0.87333696]
[1740130843016,1.03451664,98494.0,98493.0,0.87333696]
[1740130843234,1.06391664,98494.0,98493.0,0.87333696]
[1740130843426,1.04391664,98494.0,98493.0,0.87333696]
[1740130843610,1.06391664,98494.0,98493.0,0.87333696]
[1740130843817,0.80045164,98494.0,98493.0,0.87333696]
[1740130844046,3.41710364,98494.0,98493.0,0.87333696]
[1740130844254,3.25830464,98494.0,98493.0,0.87333696]
[1740130844656,3.33920464,98494.0,98493.0,0.84933696]
[1740130844859,3.3152913,98494.0,98493.0,0.84678672]
[1740130845144,3.2706493,98494.0,98493.0,0.84678672]
[1740130845357,3.29341346,98494.0,98493.0,0.84678672]
[1740130845699,3.27341346,98494.0,98493.0,0.84678672]
[1740130845896,3.29341346,98494.0,98493.0,0.83549187]
[1740130846107,3.27341346,98494.0,98493.0,0.83549187]
[1740130846286,3.29341346,98494.0,98493.0,0.83549187]
[1740130846752,3.29341346,98494.0,98493.0,0.8324704]
[1740130849189,2.62593046,98494.0,98493.0,0.8324704]
[1740130849394,2.49056046,98494.0,98493.0,0.8324704]
[1740130850593,1.21460577,98494.0,98493.0,0.8324704]
[1740130850865,1.23460577,98494.0,98493.0,0.8324704]
[1740130851152,1.13485495,98494.0,98493.0,0.8324704]
[1740130851486,1.15485495,98494.0,98493.0,0.8324704]
[1740130851923,1.13485495,98494.0,98493.0,0.8324704]
[1740130852128,1.25750064,98494.0,98493.0,0.8324704]
[1740130854390,1.23750064,98494.0,98493.0,0.8324704]
[1740130854735,2.22682864,98494.0,98493.0,0.8324704]
[1740130856452,2.24682864,98494.0,98493.0,0.8324704]
[1740130859216,2.24767924,98494.0,98493.0,0.77524659]
[1740130860419,2.23831924,98494.0,98493.0,0.77524659]
[1740130860590,0.52632355,98494.0,98493.0,0.77524659]
[1740130860791,0.67861655,98494.0,98493.0,0.85584659]
[1740130861413,0.67161655,98494.0,98493.0,0.85584659]
[1740130861837,0.67161655,98494.0,98493.0,0.77524659]
[1740130861838,3.32325355,98494.0,98493.0,0.77524659]
[1740130862051,3.30689355,98494.0,98493.0,0.77524659]
[1740130862254,3.41889924,98494.0,98493.0,0.77524659]
[1740130862521,3.42589924,98494.0,98493.0,0.77524659]
[1740130862894,3.41889924,98494.0,98493.0,0.77524659]
[1740130863098,3.4416634,98494.0,98493.0,0.77524659]
[1740130863450,3.4486634,98494.0,98493.0,0.77524659]
[1740130864167,3.50565006,98494.0,98493.0,0.77524659]
[1740130864506,3.50565006,98494.0,98493.0,0.73761116]
[1740130864726,3.50565006,98494.0,98493.0,0.65000096]
[1740130864932,0.86101306,98494.0,98493.0,0.65000096]
[1740130865140,3.50565006,98494.0,98493.0,0.65000096]
[1740130865400,3.50565006,98494.0,98493.0,0.63950096]
[1740130865893,3.75508897,98494.0,98493.0,0.53027989]
[1740130866129,3.75508897,98494.0,98493.0,0.13518989]
[1740130866335,3.75508897,98494.0,98493.0,0.06646391]
[1740130866645,3.74808897,98494.0,98493.0,0.06646391]
[1740130866874,3.74808897,98494.0,98491.0,1.5669]
[1740130866875,0.342296,98492.0,98491.0,1.5669]
[1740130867081,5.27324734,98492.0,98491.0,1.5669]
[1740130867303,5.48340575,98492.0,98491.0,1.5669]
[1740130868155,5.49040575,98492.0,98491.0,1.5669]
[1740130869469,5.49740575,98492.0,98491.0,1.5669]
[1740130869701,5.49740575,98492.0,98491.0,1.55305827]
[1740130870126,5.49740575,98492.0,98491.0,1.54390225]
[1740130870904,5.65017489,98492.0,98491.0,1.45621078]
[1740130875369,5.65775729,98492.0,98491.0,1.45621078]
[1740130875568,3.01312029,98492.0,98491.0,1.45621078]
[1740130875770,5.65775729,98492.0,98491.0,1.43554268]
[1740130876185,5.57979729,98492.0,98491.0,1.43554268]
[1740130876364,5.57979729,98492.0,98491.0,1.40603995]
[1740130876766,5.60248761,98492.0,98491.0,1.40603995]
[1740130877171,5.65904791,98492.0,98491.0,1.40603995]
[1740130877732,5.65904791,98492.0,98491.0,1.40273965]
[1740130879198,5.65904791,98492.0,98491.0,1.34057413]
[1740130879406,5.65904791,98492.0,98491.0,1.31362865]
[1740130879607,5.65904791,98492.0,98491.0,1.30992361]
[1740130880345,5.65904791,98492.0,98491.0,1.04997362]
[1740130880539,5.65904791,98492.0,98491.0,0.80728943]
[1740130880753,5.65904791,98492.0,98491.0,0.79355774]
[1740130880926,5.65204791,98492.0,98491.0,0.63209112]
[1740130881142,5.68848682,98492.0,98491.0,0.14032219]
[1740130881343,5.68148682,98492.0,98491.0,0.09743446]
[1740130881568,0.302299,98490.0,98489.0,1.76867183]
[1740130881745,3.21328756,98490.0,98489.0,1.72666023]
[1740130881950,3.42679379,98490.0,98489.0,1.72666023]
[1740130882163,3.46410269,98490.0,98489.0,1.64887823]
[1740130882415,3.46410269,98490.0,98489.0,1.61045794]
[1740130882613,3.47346269,98490.0,98489.0,1.60119794]
[1740130882816,3.62623183,98490.0,98489.0,1.59812874]
[1740130883188,3.60650051,98490.0,98489.0,1.56760606]
[1740130883415,3.68575113,98490.0,98489.0,1.52760606]
[1740130883634,3.20574544,98490.0,98489.0,1.57568338]
[1740130883803,1.14635153,98490.0,98489.0,1.57568338]
[1740130884020,1.15335153,98490.0,98489.0,1.57568338]
[1740130884419,1.14399153,98490.0,98489.0,1.57568338]
[1740130884689,1.09679123,98490.0,98489.0,1.57568338]
[1740130884883,1.19943692,98490.0,98489.0,1.57568338]
[1740130885173,1.1767466,98490.0,98489.0,1.57568338]
[1740130886098,0.9394246,98490.0,98489.0,1.49708338]
[1740130886303,3.5840616,98490.0,98489.0,1.49708338]
[1740130886925,3.5747016,98490.0,98489.0,1.49708338]
[1740130887134,3.5840616,98490.0,98489.0,1.49708338]
[1740130887637,3.58379254,98490.0,98489.0,1.49708338]
[1740130888547,3.64035284,98490.0,98489.0,1.49708338]
[1740130892320,3.66320498,98490.0,98489.0,1.49708338]
[1740130892982,3.89148498,98490.0,98489.0,1.49708338]
[1740130894439,3.89148498,98490.0,98489.0,1.38263021]
[1740130894600,3.89148498,98490.0,98489.0,1.38433141]
[1740130895319,3.89148498,98490.0,98489.0,1.38263021]
[1740130897276,4.09148498,98490.0,98489.0,1.32538441]
[1740130897457,1.44684798,98490.0,98489.0,1.32538441]
[1740130897657,4.09148498,98490.0,98489.0,1.32538441]
[1740130898610,4.09148498,98490.0,98489.0,1.32264915]
[1740130904078,4.12202098,98490.0,98489.0,1.32264915]
[1740130904291,4.11266098,98490.0,98489.0,1.32264915]
[1740130904487,4.12198098,98490.0,98489.0,1.32264915]
[1740130904987,4.12198098,98490.0,98489.0,1.11494915]
[1740130907008,4.12283158,98490.0,98489.0,1.11494915]
[1740130908141,1.47819458,98490.0,98489.0,1.11494915]
[1740130908521,4.12283158,98490.0,98489.0,1.11494915]
[1740130908965,4.06585128,98490.0,98489.0,1.11494915]
[1740130909883,4.12241158,98490.0,98489.0,1.11494915]
[1740130910849,4.12241158,98490.0,98489.0,1.11224745]
[1740130913718,4.12241158,98490.0,98489.0,1.08554224]
[1740130915314,4.12241158,98490.0,98489.0,0.98961845]
[1740130915576,4.15185049,98490.0,98489.0,0.98961845]
[1740130915768,4.15185049,98490.0,98489.0,0.52156846]
[1740130915915,4.15185049,98490.0,98489.0,0.50737846]
[1740130916114,4.15185049,98490.0,98489.0,0.48991146]
[1740130916382,4.17046865,98490.0,98489.0,0.42631977]
[1740130916534,4.17046865,98490.0,98489.0,0.06853822]
[1740130916747,4.15185049,98490.0,98489.0,0.06853822]
[1740130916969,4.15185049,98490.0,98489.0,0.02584822]
[1740130917124,4.15185049,98490.0,98487.0,1.59180822]
[1740130917349,0.40494769,98488.0,98487.0,1.54317822]
[1740130917559,3.11064487,98488.0,98487.0,1.54317822]
[1740130917776,3.35378175,98488.0,98487.0,1.54317822]
[1740130918441,3.56311119,98488.0,98487.0,1.54317822]
[1740130918645,0.91847419,98488.0,98487.0,1.54317822]
[1740130918873,3.67275688,98488.0,98487.0,1.54317822]
[1740130919470,3.61619658,98488.0,98487.0,1.54317822]
[1740130919835,3.62319658,98488.0,98487.0,1.54317822]
[1740130922747,3.62319658,98488.0,98487.0,1.47038282]
[1740130922947,3.61619658,98488.0,98487.0,1.15522303]
[1740130923201,3.61619658,98488.0,98486.0,2.0631]
[1740130923202,0.302304,98487.0,98486.0,2.0631]
[1740130923400,0.302305,98486.0,98485.0,0.79221247]
[1740130923647,0.348307,98485.0,98484.0,0.81718036]
[1740130923850,3.08071509,98485.0,98484.0,0.76943938]
[1740130924006,3.08071509,98485.0,98484.0,0.62763567]
[1740130924007,3.10744641,98485.0,98484.0,0.62763567]
[1740130924214,3.10744641,98485.0,98484.0,0.04765519]
[1740130924421,0.40524032,98484.0,98483.0,0.41871312]
[1740130924622,0.40524032,98484.0,98482.0,1.16619311]
[1740130924623,0.30231,98483.0,98482.0,1.16619311]
[1740130924857,3.45954941,98483.0,98482.0,0.88952119]
[1740130925065,0.924412,98482.0,98481.0,0.99473916]
[1740130925262,1.03891441,98482.0,98481.0,1.6e-07]
[1740130925489,1.03891441,98482.0,98480.0,0.54821456]
[1740130925490,0.2721,98481.0,98480.0,0.54821456]
[1740130925698,0.0758,98474.0,98428.0,0.0823]
[1740130925927,0.802339,98464.0,98428.0,0.0823]
[1740130926140,5.64935787,98464.0,98428.0,0.0823]
[1740130926291,0.15,98437.0,98428.0,0.0823]
[1740130926493,0.15,98433.0,98428.0,0.0823]
[1740130926699,2.83557827,98432.0,98428.0,0.0823]
[1740130926912,3.07477282,98432.0,98428.0,0.0823]
[1740130927114,3.2800642,98432.0,98431.0,0.0002]
[1740130927444,3.3106182,98432.0,98431.0,0.0002]
[1740130928390,3.3176182,98432.0,98431.0,0.0002]
[1740130928596,3.34855711,98432.0,98431.0,0.0002]
[1740130928808,0.15,98431.0,98428.0,0.0823]
[1740130929011,0.25264569,98429.0,98428.0,0.0823]
[1740130929148,0.28426696,98429.0,98428.0,0.0823]
[1740130929396,2.96234462,98429.0,98428.0,0.0823]
[1740130929913,0.15,98428.0,98425.0,0.0461]
[1740130930118,0.10264569,98426.0,98425.0,0.0461]
[1740130930314,1.27727217,98426.0,98425.0,0.0461]
[1740130930515,5.04933007,98426.0,98425.0,0.0461]
[1740130931302,5.04933007,98426.0,98425.0,0.04616153]
[1740130931506,5.05865007,98426.0,98425.0,6.153e-05]
[1740130931708,0.15,98425.0,98391.0,0.081024]
[1740130931914,0.25264569,98412.0,98411.0,0.08095385]
[1740130932120,3.92190917,98412.0,98411.0,0.08095385]
[1740130932257,4.13321175,98412.0,98411.0,0.08095385]
[1740130932463,4.24517744,98412.0,98411.0,0.08095385]
[1740130932979,4.24517744,98412.0,98411.0,0.07692985]
[1740130933217,4.2786181,98412.0,98411.0,0.07692985]
[1740130933387,4.2856181,98412.0,98411.0,0.07692985]
[1740130933589,4.6079181,98412.0,98411.0,0.07692985]
[1740130934335,4.57447744,98412.0,98411.0,0.07692985]
[1740130934873,4.56747744,98412.0,98411.0,0.07692985]
[1740130935173,0.15,98411.0,98407.0,0.0461]
[1740130935454,0.25264569,98408.0,98407.0,0.0461]
[1740130935676,2.92884496,98408.0,98407.0,0.0461]
[1740130935981,3.12407325,98408.0,98407.0,0.0461]
[1740130936305,2.90913125,98408.0,98407.0,0.0461]
[1740130936494,2.23742998,98408.0,98407.0,0.0461]
[1740130936729,1.81121498,98408.0,98407.0,0.0461]
[1740130936941,1.71213298,98408.0,98407.0,0.0461]
[1740130937350,0.45487398,98408.0,98407.0,0.0461]
[1740130937931,0.46187398,98408.0,98407.0,0.0461]
[1740130938308,0.46187398,98408.0,98407.0,0.1288]
[1740130938518,1.49303898,98408.0,98407.0,0.1288]
[1740130938718,0.47119398,98408.0,98407.0,0.0461]
[1740130938924,0.48573483,98408.0,98407.0,0.0461]
[1740130939127,0.80803483,98408.0,98407.0,0.0461]
[1740130942738,0.79871483,98408.0,98407.0,0.0461]
[1740130943117,3.58685524,98408.0,98407.0,0.0461]
[1740130943326,0.16454085,98407.0,98400.0,0.3]
[1740130943437,0.26718654,98401.0,98400.0,0.3]
[1740130943649,4.20311474,98401.0,98400.0,0.3]
[1740130943848,3.52540286,98401.0,98400.0,0.3]
[1740130944052,3.81392621,98401.0,98400.0,0.276]
[1740130944261,3.66148921,98401.0,98400.0,0.276]
[1740130944482,3.66848921,98401.0,98400.0,0.276]
[1740130944688,3.81768621,98401.0,98400.0,0.276]
[1740130944894,3.66524921,98401.0,98400.0,0.276]
[1740130945100,3.82468621,98401.0,98400.0,0.276]
[1740130945300,3.66524921,98401.0,98400.0,0.13734119]
[1740130945759,3.66974746,98401.0,98400.0,0.13734119]
[1740130945957,3.63880855,98401.0,98400.0,0.13734119]
[1740130946854,3.53616286,98401.0,98400.0,0.13734119]
[1740130947832,1.83241386,98401.0,98400.0,0.13734119]
[1740130949356,4.47705086,98401.0,98400.0,0.13734119]
[1740130950186,4.62948786,98401.0,98400.0,0.13734119]
[1740130950401,4.66292852,98401.0,98400.0,0.13734119]
[1740130950620,4.76557421,98401.0,98400.0,0.13734119]
[1740130951027,4.69386743,98401.0,98400.0,0.01035494]
[1740130951505,4.54143043,98401.0,98400.0,0.01035494]
[1740130951715,3.93330786,98401.0,98400.0,0.01035494]
[1740130951921,2.31825586,98401.0,98400.0,0.01035494]
[1740130952125,2.30893586,98401.0,98400.0,0.01035494]
[1740130952327,2.41390155,98401.0,98400.0,0.01035494]
[1740130953100,2.56633855,98401.0,98400.0,0.01035494]
[1740130953305,2.56633855,98401.0,98397.0,0.0149946]
[1740130953306,0.31698285,98398.0,98397.0,0.0149946]
[1740130953530,4.18247568,98398.0,98397.0,0.0149946]
[1740130953733,4.29891125,98398.0,98397.0,0.0149946]
[1740130953910,4.40155694,98398.0,98397.0,0.0149946]
[1740130954632,4.46141866,98398.0,98397.0,0.0149946]
[1740130955014,0.152451,98392.0,98391.0,0.0002]
[1740130955193,3.09581226,98392.0,98391.0,0.0002]
[1740130955395,3.4528461,98392.0,98391.0,0.0002]
[1740130955675,3.48624856,98392.0,98391.0,0.0002]
[1740130955986,3.52189796,98392.0,98391.0,0.0002]
[1740130956275,3.57475968,98392.0,98391.0,0.0002]
[1740130956487,3.60455017,98392.0,98391.0,0.0002]
[1740130956685,3.62083017,98392.0,98391.0,0.0002]
[1740130956951,3.93613017,98392.0,98391.0,0.0002]
[1740130957229,3.94667926,98392.0,98391.0,0.0002]
[1740130957468,3.95367926,98392.0,98391.0,0.0002]
[1740130957665,3.94667926,98392.0,98391.0,0.0002]
[1740130958765,3.96260919,98392.0,98391.0,0.0002]
[1740130958973,3.7490141,98392.0,98391.0,0.0002]
[1740130959380,3.7397341,98392.0,98391.0,0.0002]
[1740130959590,3.7397341,98392.0,98350.0,0.0754]
[1740130959591,0.16454085,98391.0,98350.0,0.0754]
[1740130959809,0.16454085,98391.0,98351.0,0.00063319]
[1740130959810,0.25264569,98352.0,98351.0,0.00063319]
[1740130960016,1.31808989,98352.0,98351.0,0.02063319]
[1740130960422,1.4366909,98352.0,98351.0,0.02063319]
[1740130960980,1.4366909,98352.0,98351.0,0.10073319]
[1740130961237,1.4436909,98352.0,98351.0,0.14783319]
[1740130961864,0.35978442,98352.0,98351.0,0.14783319]
[1740130962031,0.3445267,98352.0,98351.0,0.14783319]
[1740130962635,0.3375267,98352.0,98351.0,0.14783319]
[1740130963062,0.3305267,98352.0,98351.0,0.14783319]
[1740130963368,0.3375267,98352.0,98351.0,0.14783319]
[1740130963995,0.3515267,98352.0,98351.0,0.14783319]
[1740130964142,0.3422467,98352.0,98351.0,0.14783319]
[1740130964343,0.1945267,98352.0,98351.0,0.30034719]
[1740130964812,0.1922467,98352.0,98351.0,0.32034719]
[1740130965070,0.2015267,98352.0,98351.0,0.32034719]
[1740130965598,0.1922467,98352.0,98351.0,0.32034719]
[1740130965953,0.2015267,98352.0,98351.0,0.32034719]
[1740130968844,0.1922467,98352.0,98351.0,0.32034719]
[1740130969220,0.13960101,98352.0,98351.0,0.32034719]
[1740130969802,0.08960101,98352.0,98351.0,0.32034719]
[1740130970029,1.02462648,98383.0,98382.0,0.144]
[1740130970271,1.16820732,98383.0,98382.0,0.144]
[1740130970487,0.14358084,98383.0,98382.0,0.296466]
[1740130970690,0.29358084,98383.0,98382.0,0.144]
[1740130971299,0.29362406,98383.0,98382.0,0.144]
[1740130971522,0.30062406,98383.0,98382.0,0.144]
[1740130971935,0.30762406,98383.0,98382.0,0.144]
[1740130972883,0.30062406,98383.0,98382.0,0.144]
[1740130973092,0.30762406,98383.0,98382.0,0.145]
[1740130973489,1.36301295,98383.0,98382.0,0.145]
[1740130974598,1.36301295,98383.0,98382.0,0.001]
[1740130974901,1.33225054,98383.0,98382.0,0.001]
[1740130976050,3.97688754,98383.0,98382.0,0.001]
[1740130976528,0.0809,98372.0,98351.0,0.0002]
[1740130976767,0.15,98360.0,98353.0,0.02]
[1740130977000,0.15,98358.0,98351.0,0.0002]
[1740130977219,0.15,98356.0,98353.0,0.02]
[1740130977441,0.15,98354.0,98351.0,0.0002]
[1740130977649,0.15,98352.0,98351.0,0.0002]
[1740130977857,0.92645215,98352.0,98351.0,0.0159]
[1740130978074,0.76984515,98352.0,98351.0,0.0159]
[1740130978495,0.76984515,98352.0,98313.0,0.0731293]
[1740130978698,0.03165515,98351.0,98313.0,0.0731293]
[1740130978901,0.03165515,98351.0,98313.0,0.07356249]
[1740130979327,0.15586325,98323.0,98313.0,0.07356249]
[1740130979533,0.18165515,98322.0,98313.0,0.00043319]
[1740130979740,0.03165515,98321.0,98313.0,0.00043319]
[1740130980616,0.04583393,98320.0,98313.0,0.00043319]
[1740130981046,0.03165515,98319.0,98313.0,0.00043319]
[1740130982534,0.03865515,98319.0,98313.0,0.00043319]
[1740130982945,0.10264569,98314.0,98313.0,0.00043319]
[1740130983180,0.14798084,98314.0,98313.0,0.00043319]
[1740130983602,0.13430084,98314.0,98313.0,0.00043319]
[1740130984074,0.15189148,98314.0,98313.0,0.00043319]
[1740130984896,0.15889148,98314.0,98313.0,0.00043319]
[1740130985342,0.18700123,98314.0,98313.0,0.00043319]
[1740130985545,0.18000123,98314.0,98313.0,0.00043319]
[1740130985761,0.20570135,98314.0,98313.0,0.00043319]
[1740130986623,0.18700123,98314.0,98313.0,0.00043319]
[1740130986830,0.19400123,98314.0,98313.0,0.00043319]
[1740130987046,0.18700123,98314.0,98313.0,0.00043319]
[1740130987245,0.18000123,98314.0,98313.0,0.00043319]
[1740130987455,0.19400123,98314.0,98313.0,0.00043319]
[1740130987869,0.16234608,98314.0,98313.0,0.15300619]
[1740130988014,0.16234608,98314.0,98313.0,0.23100619]
[1740130988216,0.05970039,98314.0,98313.0,0.23100619]
[1740130988463,0.05970039,98314.0,98313.0,0.27650619]
[1740130988684,0.05270039,98314.0,98313.0,0.27650619]
[1740130989252,0.04570039,98314.0,98313.0,0.27650619]
[1740130990036,0.05270039,98314.0,98313.0,0.27650619]
[1740130990443,0.06543384,98314.0,98313.0,0.27650619]
[1740130990643,0.07243384,98314.0,98313.0,0.27650619]
[1740130991085,0.06543384,98314.0,98313.0,0.27650619]
[1740130991547,0.07243384,98314.0,98313.0,0.27650619]
[1740130992787,0.07243384,98314.0,98313.0,0.27821039]
[1740130992990,0.07243384,98314.0,98313.0,0.29821039]
[1740130993197,0.0008521,98321.0,98320.0,0.152563]
[1740130993430,1.02462648,98367.0,98321.0,0.02]
[1740130993637,1.02462648,98367.0,98339.0,0.080824]
[1740130993638,0.10264569,98363.0,98339.0,0.080824]
[1740130993841,0.10264569,98363.0,98357.0,0.152504]
[1740130994050,0.10264569,98363.0,98339.0,0.080824]
[1740130994270,0.15586325,98349.0,98320.0,0.0753]
[1740130994692,1.02462648,98354.0,98320.0,0.0753]
[1740130994895,0.0315564,98353.0,98320.0,0.0753]
[1740130995097,0.0315564,98353.0,98320.0,0.07542988]
[1740130995344,0.10264569,98352.0,98339.0,0.152533]
[1740130995523,0.10264569,98352.0,98330.0,0.080824]
[1740130995725,0.007,98349.0,98330.0,0.080824]
[1740130995929,0.10264569,98348.0,98343.0,0.152526]
[1740130996135,0.10264569,98348.0,98345.0,0.152523]
[1740130996545,0.10264569,98348.0,98346.0,0.152521]
[1740130996751,0.10264569,98348.0,98330.0,0.080824]
[1740130996951,0.10264569,98348.0,98343.0,0.152526]
[1740130997157,0.10264569,98348.0,98330.0,0.080824]
[1740130997375,0.10964569,98348.0,98330.0,0.080824]
[1740130997576,0.10964569,98348.0,98344.0,0.152525]
[1740130997781,0.10264569,98348.0,98346.0,0.152522]
[1740130997987,0.11664569,98348.0,98346.0,0.152522]
[1740130998404,0.014,98348.0,98346.0,0.152522]
[1740130998605,0.007,98348.0,98347.0,0.0805]
[1740130999027,0.014,98348.0,98347.0,0.0805]
[1740130999862,0.007,98348.0,98347.0,0.0805]
[1740131000203,0.014,98348.0,98347.0,0.0805]
[1740131000408,0.007,98348.0,98347.0,0.0805]
[1740131000847,0.014,98348.0,98347.0,0.0805]
[1740131001451,0.014,98348.0,98346.0,0.152522]
[1740131002013,0.014,98348.0,98331.0,0.0756]
[1740131002195,0.007,98348.0,98344.0,0.152524]
[1740131002330,0.021,98348.0,98344.0,0.12961107]
[1740131002531,0.021,98348.0,98345.0,0.152523]
[1740131002724,0.014,98348.0,98345.0,0.152523]
[1740131002929,0.10264569,98347.0,98331.0,0.0756]
[1740131003191,0.11537515,98347.0,98333.0,0.001]
[1740131003476,0.11537515,98347.0,98344.0,0.152525]
[1740131003695,0.11537515,98347.0,98346.0,0.152522]
[1740131003903,0.01272946,98347.0,98346.0,0.152522]
[1740131004576,0.01972946,98347.0,98346.0,0.233622]
[1740131004801,0.04421493,98347.0,98346.0,0.233622]
[1740131005004,0.03721493,98347.0,98346.0,0.233622]
[1740131005359,0.03721493,98347.0,98346.0,0.26913512]
[1740131005587,0.04421493,98347.0,98346.0,0.233622]
[1740131005820,0.04679232,98347.0,98346.0,0.233622]
[1740131006218,0.05379232,98347.0,98346.0,0.26913512]
[1740131006838,0.05379232,98347.0,98346.0,0.233622]
[1740131007232,0.05379232,98347.0,98346.0,0.33433512]
[1740131007434,0.000852,98352.0,98351.0,0.172514]
[1740131007633,0.000852,98352.0,98351.0,0.255514]
[1740131007889,0.000852,98352.0,98351.0,0.39367281]
[1740131008465,0.0008517,98383.0,98368.0,0.245188]
[1740131008673,0.0008517,98383.0,98368.0,0.28070112]
[1740131009674,0.0008517,98383.0,98382.0,0.152466]
[1740131010318,0.0008517,98383.0,98382.0,0.145466]
[1740131010704,0.0078517,98383.0,98382.0,0.146466]
[1740131011058,0.0078517,98383.0,98382.0,0.14259588]
[1740131011661,0.0118517,98383.0,98382.0,0.14359588]
[1740131013782,0.11449739,98383.0,98382.0,0.00212988]
[1740131015204,0.11049739,98383.0,98382.0,0.00112988]
[1740131015657,0.16009739,98383.0,98382.0,0.00212988]
[1740131015834,0.18118713,98383.0,98382.0,0.00212988]
[1740131015973,0.16009739,98383.0,98382.0,0.00212988]
[1740131016175,0.15309739,98383.0,98382.0,0.00112988]
[1740131016389,0.15309739,98383.0,98382.0,0.00212988]
[1740131016592,0.31709739,98383.0,98382.0,0.00212988]
[1740131016892,0.31709739,98383.0,98382.0,0.00012988]
[1740131017104,0.33109739,98383.0,98382.0,0.001]
[1740131017618,0.32409739,98383.0,98382.0,0.001]
[1740131018041,0.33109739,98383.0,98382.0,0.001]
[1740131018245,0.33109739,98383.0,98382.0,0.002703]
[1740131018386,0.36261142,98383.0,98382.0,0.002703]
[1740131020074,0.37557142,98383.0,98382.0,0.002703]
[1740131020899,0.35457142,98383.0,98382.0,0.001703]
[1740131021102,0.36857142,98383.0,98382.0,0.001703]
[1740131021303,0.2254,98382.0,98334.0,0.282688]
[1740131021532,0.15586325,98360.0,98343.0,0.00043319]
[1740131021688,0.10264569,98359.0,98357.0,0.152504]
[1740131021949,0.10264569,98359.0,98358.0,0.152504]
[1740131022535,0.10264569,98359.0,98343.0,0.00043319]
[1740131022730,0.15586325,98353.0,98348.0,0.203359]
[1740131022929,0.10264569,98352.0,98351.0,0.152514]
[1740131023287,0.1342446,98352.0,98351.0,0.152514]
[1740131024062,0.10964569,98352.0,98351.0,0.152514]
[1740131024275,0.1412496,98352.0,98351.0,0.152514]
[1740131024402,0.1482496,98352.0,98351.0,0.152514]
[1740131025260,0.11664569,98352.0,98351.0,0.152514]
[1740131025483,0.14826007,98352.0,98351.0,0.152514]
[1740131027988,0.11664569,98352.0,98351.0,0.12069075]
[1740131030266,0.20746324,98352.0,98351.0,0.12069075]
[1740131031230,0.10481755,98352.0,98351.0,0.12069075]
[1740131031391,0.10566925,98352.0,98351.0,0.12069075]
[1740131032195,0.0148517,98352.0,98351.0,0.12069075]
[1740131032436,0.0148517,98352.0,98351.0,0.19889075]
[1740131032647,0.0148517,98352.0,98351.0,0.12069075]
[1740131033495,0.0008517,98383.0,98382.0,0.152466]
[1740131033699,0.03251741,98383.0,98382.0,0.152366]
[1740131033897,0.0008517,98383.0,98382.0,0.152366]
[1740131034100,0.0008517,98383.0,98382.0,0.231466]
[1740131034305,0.0008517,98383.0,98382.0,0.289466]
[1740131035496,0.0008517,98383.0,98382.0,0.152366]
[1740131036325,0.0078517,98383.0,98382.0,0.228066]
[1740131036735,0.0078517,98383.0,98382.0,0.229066]
[1740131036999,0.0148517,98383.0,98382.0,0.153366]
[1740131037200,0.0148517,98383.0,98382.0,0.152366]
[1740131037395,0.0218517,98383.0,98382.0,0.152366]
[1740131037604,0.02862082,98383.0,98382.0,0.152366]
[1740131037783,0.02162082,98383.0,98382.0,0.152366]
[1740131039100,0.0208517,98383.0,98382.0,0.153366]
[1740131039324,0.0138517,98383.0,98382.0,0.152366]
[1740131039534,0.0068517,98383.0,98382.0,0.153366]
[1740131039655,0.0138517,98383.0,98382.0,0.153366]
[1740131039866,0.0208517,98383.0,98382.0,0.153366]
[1740131040081,0.09105432,98394.0,98393.0,0.152449]
[1740131040283,0.09118401,98394.0,98393.0,0.152449]
[1740131042264,0.09318401,98394.0,98393.0,0.153449]
[1740131042684,0.00212969,98394.0,98393.0,0.153449]
[1740131042870,0.00298139,98394.0,98393.0,0.153449]
[1740131043213,0.01673875,98394.0,98393.0,0.15317994]
[1740131043367,0.01473875,98394.0,98393.0,0.15217994]
[1740131043797,0.01673875,98394.0,98393.0,0.15317994]
[1740131045541,0.01473875,98394.0,98393.0,0.15217994]
[1740131045741,0.00298139,98394.0,98393.0,0.15317994]
[1740131046356,0.00098139,98394.0,98393.0,0.15217994]
[1740131046552,0.00298139,98394.0,98393.0,0.15317994]
[1740131049512,0.10562708,98394.0,98393.0,0.15317994]
[1740131050128,0.10562708,98394.0,98393.0,0.15270722]
[1740131053497,0.00298139,98394.0,98393.0,0.15270722]
[1740131053697,0.10562708,98394.0,98393.0,0.15270722]
[1740131054316,0.10562708,98394.0,98393.0,0.001]
[1740131054517,0.10562708,98394.0,98393.0,0.153449]
[1740131054847,0.15292708,98394.0,98393.0,0.001]
[1740131055486,0.18450113,98394.0,98393.0,0.0027028]